bitfinex/quotes_SOLUSD_20241127
["timestamp","ask_amount","ask_price","bid_price","bid_amount"]
[1732726107446,12.51933752,239.18,239.1,12.51933752]
[1732726107746,15.3176,239.19,239.12,12.51933752]
[1732726108125,12.51933752,239.2,239.12,12.51933752]
[1732726108526,1.2542,239.19,239.12,12.51933752]
[1732726109667,1.2542,239.19,239.06,10.4576]
[1732726109848,1.2542,239.19,239.11,12.51933752]
[1732726111762,1.2541,239.21,239.15,12.51933752]
[1732726111941,15.2318,239.24,239.19,12.51933752]
[1732726112254,12.51933752,239.28,239.19,12.51933752]
[1732726112664,1.2537,239.29,239.21,12.51933752]
[1732726112838,30.41083752,239.3,239.23,12.51933752]
[1732726113260,30.41083752,239.3,239.21,12.51933752]
[1732726113962,1.2538,239.27,239.21,12.51933752]
[1732726114337,1.2538,239.27,239.19,12.51933752]
[1732726114959,13.77303752,239.28,239.21,12.51933752]
[1732726116935,13.77303752,239.28,239.2,4.1805]
[1732726116936,12.51933752,239.26,239.16,12.51933752]
[1732726117131,12.51933752,239.24,239.16,12.51933752]
[1732726117951,1.254,239.23,239.16,12.51933752]
[1732726120067,1.2541,239.21,239.14,12.51933752]
[1732726120763,13.77323752,239.24,239.16,12.51933752]
[1732726123470,13.77323752,239.24,239.16,16.70053752]
[1732726123669,12.51933752,239.28,239.2,12.51933752]
[1732726123989,1.2537,239.29,239.22,12.51933752]
[1732726125362,1.2537,239.29,239.2,16.69983752]
[1732726125363,12.51933752,239.28,239.2,16.69983752]
[1732726126074,12.51933752,239.28,239.2,12.51933752]
[1732726126273,12.51933752,239.26,239.18,12.51933752]
[1732726126564,1.2539,239.25,239.18,12.51933752]
[1732726127042,1.2538,239.27,239.2,12.51933752]
[1732726127961,12.51933752,239.26,239.18,12.51933752]
[1732726128352,1.2539,239.25,239.18,12.51933752]
[1732726128766,12.51933752,239.23,239.09,4.1825]
[1732726129069,12.51933752,239.23,239.16,12.51933752]
[1732726130078,1.254,239.22,239.16,12.51933752]
[1732726130578,3.1343,239.29,239.18,12.51933752]
[1732726130579,12.51933752,239.27,239.18,12.51933752]
[1732726131874,1.2538,239.26,239.2,12.51933752]
[1732726132380,1.2538,239.26,239.18,16.70023752]
[1732726133776,1.2538,239.26,239.2,12.51933752]
[1732726133973,1.2538,239.28,239.2,12.51933752]
[1732726134367,12.51933752,239.27,239.2,12.51933752]
[1732726134900,17.8916,239.3,239.22,12.51933752]
[1732726135058,17.8916,239.3,239.24,12.51933752]
[1732726135456,17.8916,239.3,239.22,12.51933752]
[1732726136057,12.51933752,239.29,239.21,4.1804]
[1732726137362,1.2537,239.28,239.21,4.1804]
[1732726137872,1.2537,239.28,239.22,12.51933752]
[1732726138072,12.51933752,239.29,239.22,12.51933752]
[1732726138270,1.2536,239.31,239.22,12.51933752]
[1732726138474,12.51933752,239.29,239.22,12.51933752]
[1732726139385,13.77303752,239.29,239.22,12.51933752]
[1732726139558,13.77303752,239.29,239.21,4.1804]
[1732726139761,13.77303752,239.29,239.21,16.69973752]
[1732726140388,1.2537,239.29,239.22,8.0518724]
[1732726141095,8.0518724,239.32,239.24,8.0518724]
[1732726142188,1.2536,239.31,239.24,8.0518724]
[1732726143195,9.3054724,239.31,239.24,8.0518724]
[1732726143380,8.0518724,239.28,239.18,4.1809]
[1732726143581,8.0518724,239.28,239.19,8.0518724]
[1732726144265,1.2538,239.27,239.19,8.0518724]
[1732726144463,1.2538,239.27,239.2,8.0518724]
[1732726145266,20.0,239.33,239.2,8.0518724]
[1732726145493,8.0518724,239.29,239.22,8.0518724]
[1732726145868,8.0518724,239.29,239.2,8.0518724]
[1732726146190,8.0518724,239.25,239.13,4.1818]
[1732726146486,16.0851,239.25,239.13,4.1818]
[1732726146693,8.0518724,239.22,239.14,8.0518724]
[1732726148190,1.2541,239.21,239.14,8.0518724]
[1732726148976,8.0518724,239.2,239.11,4.1821]
[1732726149181,8.0518724,239.18,239.06,4.183]
[1732726149387,8.0518724,239.18,239.03,10.4586]
[1732726149388,8.0518724,239.14,239.01,4.1839]
[1732726149703,8.0518724,239.14,239.06,8.0518724]
[1732726149993,8.0518724,239.16,239.08,8.0518724]
[1732726150181,1.2544,239.15,239.08,8.0518724]
[1732726151801,9.3061724,239.16,239.08,8.0518724]
[1732726151987,1.2542,239.2,239.13,8.0518724]
[1732726152170,89.2199,239.25,239.04,46.8493896]
[1732726152171,16.0851,239.25,239.18,8.0518724]
[1732726152369,1.2538,239.27,239.2,8.0518724]
[1732726152569,15.1413,239.31,239.14,0.83393532]
[1732726152570,1.2536,239.3,239.14,0.83393532]
[1732726152870,15.1413,239.31,239.15,10.0]
[1732726153076,15.1413,239.31,239.24,8.0518724]
[1732726153282,15.1413,239.31,239.11,5.0]
[1732726153283,8.0518724,239.25,239.11,5.0]
[1732726153473,24.4467724,239.31,239.23,8.0518724]
[1732726153889,8.0518724,239.29,239.23,8.0518724]
[1732726154400,12.58227119,239.29,239.21,12.58227119]
[1732726155294,12.58227119,239.29,239.21,16.76267119]
[1732726155797,1.2533,239.36,239.27,12.58227119]
[1732726155994,1.2533,239.36,239.31,12.58227119]
[1732726156200,15.121,239.37,239.29,12.58227119]
[1732726156201,27.70327119,239.37,239.29,12.58227119]
[1732726156374,28.95657119,239.37,239.29,12.58227119]
[1732726156697,12.58227119,239.31,239.21,12.58227119]
[1732726156993,12.58227119,239.28,239.21,12.58227119]
[1732726157504,1.2537,239.29,239.21,12.58227119]
[1732726158005,1.2537,239.29,239.23,12.58227119]
[1732726159271,12.58227119,239.28,239.19,12.58227119]
[1732726159899,12.58227119,239.28,239.21,12.58227119]
[1732726160082,1.2537,239.29,239.23,12.58227119]
[1732726160698,1.2537,239.29,239.21,12.58227119]
[1732726161797,12.58227119,239.28,239.21,12.58227119]
[1732726162397,1.2538,239.27,239.21,12.58227119]
[1732726164202,12.58227119,239.23,239.09,4.1825]
[1732726164497,1.2541,239.22,239.15,12.58227119]
[1732726166890,12.58227119,239.21,239.13,12.58227119]
[1732726167483,1.2541,239.2,239.13,12.58227119]
[1732726167896,12.58227119,239.19,239.11,12.58227119]
[1732726168504,1.2541,239.2,239.13,12.58227119]
[1732726169605,1.2541,239.2,239.15,12.58227119]
[1732726169779,1.2541,239.2,239.11,4.1821]
[1732726170084,1.2541,239.2,239.13,12.58227119]
[1732726172303,1.2541,239.22,239.15,12.58227119]
[1732726172507,12.58227119,239.21,239.13,12.58227119]
[1732726172813,1.2541,239.22,239.15,12.58227119]
[1732726173509,12.58227119,239.21,239.13,12.58227119]
[1732726174204,1.2541,239.2,239.13,12.58227119]
[1732726174398,1.2541,239.2,239.13,16.76397119]
[1732726174711,1.2541,239.2,239.13,12.238892]
[1732726174913,1.2541,239.2,239.13,8.057192]
[1732726175594,1.2541,239.2,239.13,12.238892]
[1732726175995,1.2541,239.2,239.13,8.057192]
[1732726176202,8.057192,239.21,239.13,12.238892]
[1732726176401,26.911684,239.25,239.17,8.057192]
[1732726176402,1.2539,239.25,239.17,8.057192]
[1732726176604,15.9799,239.26,239.19,8.057192]
[1732726176794,17.2338,239.26,239.17,8.057192]
[1732726177106,8.057192,239.25,239.17,8.057192]
[1732726177309,8.057192,239.25,239.13,4.1817]
[1732726177492,8.057192,239.25,239.16,8.057192]
[1732726177916,17.2338,239.26,239.18,8.057192]
[1732726178211,17.2338,239.26,239.19,8.057192]
[1732726178418,15.9799,239.26,239.19,8.057192]
[1732726178589,17.2338,239.26,239.19,8.057192]
[1732726179011,8.057192,239.23,239.15,8.057192]
[1732726179198,8.057192,239.23,239.15,12.238592]
[1732726179390,8.057192,239.23,239.15,8.057192]
[1732726179589,8.057192,239.23,239.15,12.238592]
[1732726180419,9.311192,239.23,239.15,12.238592]
[1732726180723,9.311092,239.25,239.17,8.057192]
[1732726181018,15.9799,239.26,239.17,8.057192]
[1732726181223,15.9799,239.26,239.15,4.1814]
[1732726181224,15.9799,239.26,239.19,8.057192]
[1732726181393,17.2337,239.26,239.19,8.057192]
[1732726182617,17.2337,239.26,239.17,8.057192]
[1732726182988,17.2337,239.26,239.19,8.057192]
[1732726183503,8.057192,239.29,239.21,8.057192]
[1732726184630,9.310892,239.29,239.21,12.237492]
[1732726184914,8.057192,239.29,239.23,8.057192]
[1732726185088,9.310892,239.29,239.23,8.057192]
[1732726185292,9.310892,239.29,239.21,12.237492]
[1732726185493,8.057192,239.27,239.19,8.057192]
[1732726185793,8.057192,239.25,239.17,8.057192]
[1732726186594,1.2539,239.24,239.17,8.057192]
[1732726188017,1.2539,239.24,239.17,12.238292]
[1732726188217,1.2539,239.24,239.21,8.057192]
[1732726188714,1.2537,239.28,239.23,8.057192]
[1732726189015,1.2536,239.3,239.26,8.057192]
[1732726191518,1.2536,239.3,239.21,20.0]
[1732726191715,8.057192,239.29,239.14,4.1816]
[1732726192013,8.057192,239.29,239.2,8.057192]
[1732726192693,8.057192,239.27,239.2,8.057192]
[1732726193523,4.3877,239.3,239.2,8.057192]
[1732726194718,8.057192,239.27,239.2,8.057192]
[1732726194901,8.057192,239.27,239.18,8.057192]
[1732726195105,8.057192,239.27,239.2,8.057192]
[1732726195798,1.2538,239.26,239.2,8.057192]
[1732726196106,1.2538,239.26,239.22,8.057192]
[1732726196421,1.2538,239.26,239.24,8.057192]
[1732726197106,1.2536,239.3,239.24,8.057192]
[1732726197412,1.2536,239.3,239.17,0.83379262]
[1732726197413,1.2536,239.3,239.28,8.057192]
[1732726197602,1.2536,239.3,239.26,8.057192]
[1732726199303,1.2536,239.3,239.21,20.0]
[1732726199506,12.444892,239.3,239.17,77.981]
[1732726199717,12.444892,239.3,239.22,8.057192]
[1732726201021,4.3877,239.3,239.24,8.057192]
[1732726201610,4.3877,239.3,239.22,8.057192]
[1732726201812,4.3877,239.3,239.24,8.057192]
[1732726202028,1.2536,239.3,239.26,8.057192]
[1732726202331,1.2536,239.3,239.28,8.057192]
[1732726203823,1.2536,239.3,239.26,8.057192]
[1732726204322,6.2664,239.38,239.29,8.057192]
[1732726204323,16.4248,239.37,239.29,8.057192]
[1732726204519,1.253,239.41,239.36,8.057192]
[1732726205137,8.057192,239.4,239.26,23.776884]
[1732726205620,1.2531,239.39,239.32,8.057192]
[1732726206231,1.2529,239.44,239.38,8.057192]
[1732726206625,8.057192,239.42,239.33,0.83343656]
[1732726206827,8.057192,239.4,239.32,8.057192]
[1732726207314,4.3852,239.44,239.27,4.1793]
[1732726207315,8.057192,239.42,239.34,8.057192]
[1732726207511,1.253,239.41,239.34,8.057192]
[1732726208023,0.15105025,239.41,239.34,8.057192]
[1732726208229,8.057192,239.42,239.33,8.057192]
[1732726208532,20.0,239.39,239.26,0.83345168]
[1732726208746,8.057192,239.38,239.31,8.057192]
[1732726208907,8.057192,239.38,239.23,21.976]
[1732726208908,8.057192,239.4,239.33,8.057192]
[1732726209330,8.057192,239.42,239.33,8.057192]
[1732726209507,1.2531,239.4,239.33,8.057192]
[1732726209711,1.2531,239.4,239.35,8.057192]
[1732726209922,1.2531,239.4,239.38,8.057192]
[1732726210310,1.2528,239.45,239.38,8.057192]
[1732726210728,4.3849,239.45,239.38,8.057192]
[1732726211326,8.057192,239.44,239.38,8.057192]
[1732726211525,4.3849,239.45,239.38,8.057192]
[1732726211741,8.057192,239.44,239.32,4.1784]
[1732726211917,8.057192,239.44,239.36,8.057192]
[1732726212734,4.3853,239.43,239.35,8.057192]
[1732726212936,1.2529,239.43,239.35,8.057192]
[1732726213120,1.2529,239.43,239.37,8.057192]
[1732726213322,1.2529,239.43,239.39,8.057192]
[1732726213536,1.2529,239.43,239.32,20.0]
[1732726213836,8.057192,239.41,239.33,8.057192]
[1732726214014,4.3853,239.43,239.29,4.1789]
[1732726214015,12.442492,239.43,239.35,8.057192]
[1732726215844,4.3853,239.43,239.37,8.057192]
[1732726217040,3.1324,239.43,239.35,8.057192]
[1732726217215,1.2529,239.44,239.37,8.057192]
[1732726218423,1.2529,239.44,239.39,8.057192]
[1732726218617,1.2529,239.44,239.37,8.057192]
[1732726219223,1.2529,239.44,239.35,8.057192]
[1732726219527,8.057192,239.44,239.35,8.057192]
[1732726219843,23.776884,239.45,239.33,8.057192]
[1732726220017,8.057192,239.43,239.35,8.057192]
[1732726220219,4.3848,239.46,239.35,8.057192]
[1732726220443,8.057192,239.45,239.37,8.057192]
[1732726221255,8.057192,239.43,239.35,8.057192]
[1732726221421,8.057192,239.41,239.33,8.057192]
[1732726221737,8.057192,239.39,239.3,8.057192]
[1732726222420,28.161784,239.45,239.3,8.057192]
[1732726222742,8.057192,239.39,239.3,8.057192]
[1732726223118,1.253,239.41,239.32,8.057192]
[1732726223119,9.310192,239.41,239.32,8.057192]
[1732726223435,3.1321,239.46,239.36,8.057192]
[1732726223625,8.057192,239.45,239.36,8.057192]
[1732726223821,8.057192,239.43,239.36,8.057192]
[1732726224037,8.057192,239.41,239.34,8.057192]
[1732726224239,8.057192,239.39,239.31,8.057192]
[1732726224645,1.2532,239.38,239.31,8.057192]
[1732726224946,1.2532,239.38,239.33,8.057192]
[1732726225134,8.057192,239.41,239.33,8.057192]
[1732726225342,1.2531,239.4,239.35,8.057192]
[1732726226147,3.1321,239.45,239.33,8.057192]
[1732726226347,51.834076,239.44,239.35,8.057192]
[1732726227125,8.057192,239.42,239.35,8.057192]
[1732726227321,23.776884,239.41,239.29,20.0]
[1732726227526,8.057192,239.4,239.31,8.057192]
[1732726228142,23.776884,239.37,239.3,8.057192]
[1732726228670,1.2533,239.36,239.3,8.057192]
[1732726228942,23.776884,239.35,239.27,8.057192]
[1732726229646,8.057192,239.34,239.27,8.057192]
[1732726230144,23.776884,239.35,239.29,8.057192]
[1732726230444,12.443792,239.36,239.31,8.057192]
[1732726230445,1.2533,239.36,239.31,8.057192]
[1732726232244,23.776884,239.35,239.28,8.057192]
[1732726232626,1.2534,239.34,239.28,8.057192]
[1732726232827,1.2534,239.34,239.3,8.057192]
[1732726233241,16.6178,239.37,239.32,8.057192]
[1732726233446,24.674992,239.37,239.3,8.057192]
[1732726233644,24.674992,239.37,239.23,22.80944802]
[1732726233645,23.776884,239.36,239.23,26.98934802]
[1732726233949,29.061492,239.37,239.3,8.057192]
[1732726234245,21.0043,239.37,239.3,8.057192]
[1732726235047,29.061492,239.37,239.25,4.1796]
[1732726235247,29.061492,239.37,239.28,8.057192]
[1732726235851,8.057192,239.35,239.23,7.02064802]
[1732726236028,8.057192,239.35,239.27,8.057192]
[1732726236229,23.776884,239.34,239.27,8.057192]
[1732726236451,23.776884,239.29,239.17,26.0697]
[1732726236628,8.057192,239.27,239.15,4.1813]
[1732726236825,8.057192,239.23,239.15,8.057192]
[1732726237131,8.057192,239.19,239.12,8.057192]
[1732726237429,20.0,239.18,239.11,8.057192]
[1732726237659,8.057192,239.19,239.11,8.057192]
[1732726238447,1.2543,239.17,239.13,8.057192]
[1732726238625,1.2543,239.17,239.11,8.057192]
[1732726239046,1.2543,239.17,239.11,12.59249877]
[1732726240243,12.59249877,239.21,239.13,12.59249877]
[1732726240451,1.2542,239.19,239.13,12.59249877]
[1732726240650,1.2542,239.19,239.15,12.59249877]
[1732726241447,25.030884,239.22,239.15,12.59249877]
[1732726242662,12.59249877,239.19,239.12,12.59249877]
[1732726243738,23.776884,239.18,239.12,12.59249877]
[1732726244361,23.776884,239.18,239.1,12.59249877]
[1732726244734,1.2543,239.17,239.1,12.59249877]
[1732726245631,1.2543,239.17,239.12,12.59249877]
[1732726245851,13.84679877,239.17,239.06,0.83425776]
[1732726246050,28.86429877,239.17,239.09,12.59249877]
[1732726246230,12.59249877,239.15,239.07,12.59249877]
[1732726246657,23.776884,239.16,239.1,12.59249877]
[1732726246952,16.2718,239.17,239.11,12.59249877]
[1732726247849,16.2718,239.17,239.09,12.59249877]
[1732726248055,12.59249877,239.16,239.05,4.1831]
[1732726248352,12.59249877,239.16,239.01,0.83426064]
[1732726248353,12.59249877,239.14,239.07,12.59249877]
[1732726249555,1.2545,239.13,239.07,12.59249877]
[1732726249858,12.59249877,239.11,239.03,12.59249877]
[1732726250371,12.59249877,239.12,239.05,12.59249877]
[1732726250543,12.59249877,239.11,239.03,12.59249877]
[1732726250862,12.59249877,239.12,239.04,12.59249877]
[1732726251233,16.98329877,239.13,239.06,12.59249877]
[1732726251463,23.776884,239.12,239.06,12.59249877]
[1732726251646,13.84709877,239.11,239.04,12.59249877]
[1732726251949,1.2546,239.11,239.06,12.59249877]
[1732726252539,1.2546,239.11,239.05,12.59249877]
[1732726253054,12.59249877,239.15,239.09,12.59249877]
[1732726253233,1.2544,239.15,239.07,12.59249877]
[1732726253539,12.59249877,239.14,239.06,12.59249877]
[1732726254648,1.2545,239.13,239.06,12.59249877]
[1732726255050,1.2544,239.15,239.08,12.59249877]
[1732726261061,1.2544,239.15,239.08,8.06129602]
[1732726261472,1.2544,239.15,239.1,8.06129602]
[1732726262059,1.2544,239.15,239.08,8.06129602]
[1732726262538,1.2544,239.15,239.04,20.0]
[1732726262735,1.2544,239.15,239.08,8.06129602]
[1732726263347,23.776884,239.11,239.0,2.09205]
[1732726263560,8.06129602,239.1,239.03,8.06129602]
[1732726263856,8.06129602,239.07,239.0,2.09205]
[1732726264272,1.2549,239.06,239.0,2.09205]
[1732726264455,1.2549,239.06,239.0,10.15334602]
[1732726265268,1.2549,239.06,239.02,8.06129602]
[1732726265673,1.2549,239.06,239.0,10.15334602]
[1732726265859,8.06129602,239.01,239.0,2.09205]
[1732726266372,9.31639602,239.01,239.0,2.09205]
[1732726266668,33.09328002,239.01,239.0,2.09205]
[1732726267939,33.09328002,239.01,238.87,15.5063]
[1732726267940,23.776884,239.0,238.95,8.06129602]
[1732726268142,24.2954,239.01,238.94,12.6105875]
[1732726268344,36.3874715,239.0,238.92,12.6105875]
[1732726268654,12.6105875,239.0,238.92,12.6105875]
[1732726268862,24.2954,239.01,238.87,0.83481285]
[1732726268863,16.5072,239.01,238.98,12.6105875]
[1732726269967,12.6105875,239.05,238.98,12.6105875]
[1732726269968,1.2549,239.05,238.98,12.6105875]
[1732726271151,16.4061,239.06,239.0,12.6105875]
[1732726271467,17.661,239.06,238.98,12.6105875]
[1732726271670,12.6105875,239.05,238.98,12.6105875]
[1732726272350,1.255,239.04,238.96,12.6105875]
[1732726272575,12.6105875,239.03,238.96,12.6105875]
[1732726273375,12.6105875,238.99,238.86,0.5007393]
[1732726273701,13.8655875,239.04,238.88,12.6105875]
[1732726273702,12.6105875,238.96,238.88,12.6105875]
[1732726274381,12.6105875,238.96,238.86,0.5007393]
[1732726274382,1.2554,238.95,238.89,12.6105875]
[1732726274674,12.6105875,238.93,238.86,0.5007393]
[1732726274846,15.1642,238.94,238.88,12.6105875]
[1732726275050,27.7747875,238.94,238.86,13.1113268]
[1732726275253,15.1642,238.94,238.87,12.6105875]
[1732726275674,27.7747875,238.94,238.87,12.6105875]
[1732726275875,12.6105875,238.92,238.86,0.5007393]
[1732726276347,12.6105875,238.91,238.86,0.5007393]
[1732726276549,15.1642,238.94,238.86,0.5007393]
[1732726276550,1.2557,238.9,238.86,0.5007393]
[1732726276758,15.1642,238.94,238.86,0.5007393]
[1732726276759,1.2556,238.93,238.87,12.6105875]
[1732726277263,12.6105875,238.91,238.86,0.5007393]
[1732726277784,1.2556,238.93,238.86,0.5007393]
[1732726277785,1.2556,238.93,238.88,12.6105875]
[1732726278072,13.8661875,238.93,238.86,0.5007393]
[1732726278286,12.6105875,238.92,238.86,0.5007393]
[1732726278453,13.8661875,238.93,238.86,13.1113268]
[1732726278648,36.3874715,238.92,238.86,0.5007393]
[1732726279182,36.3874715,238.92,238.86,13.1113268]
[1732726279183,23.776884,238.92,238.86,13.1113268]
[1732726280257,36.3874715,238.92,238.86,0.5007393]
[1732726280471,1.2557,238.91,238.86,0.5007393]
[1732726281081,1.2557,238.91,238.78,0.83517568]
[1732726281082,34.5357875,238.87,238.74,4.1886]
[1732726281381,34.5357875,238.87,238.74,16.7991875]
[1732726281382,12.6105875,238.81,238.74,16.7991875]
[1732726281589,12.6105875,238.82,238.75,12.6105875]
[1732726281776,12.6105875,238.85,238.78,12.6105875]
[1732726281960,12.6105875,238.84,238.77,12.6105875]
[1732726282366,13.8666875,238.83,238.76,12.6105875]
[1732726282566,12.6105875,238.85,238.77,12.6105875]
[1732726282866,12.6105875,238.85,238.78,12.6105875]
[1732726283062,12.6105875,238.84,238.77,12.6105875]
[1732726283263,12.6105875,238.83,238.76,12.6105875]
[1732726283568,12.6105875,238.85,238.78,12.6105875]
[1732726284067,15.5995,238.87,238.81,12.6105875]
[1732726284262,15.5995,238.87,238.82,12.6105875]
[1732726285157,15.5995,238.87,238.84,12.6105875]
[1732726285358,16.8554,238.87,238.8,12.6105875]
[1732726285574,29.4659875,238.87,238.8,12.6105875]
[1732726285778,16.8554,238.87,238.77,24.1879]
[1732726285983,12.6105875,238.86,238.77,20.0]
[1732726286287,29.4659875,238.87,238.79,12.6105875]
[1732726286584,12.6105875,238.85,238.78,12.6105875]
[1732726287081,16.8554,238.87,238.75,12.6105875]
[1732726287082,12.6105875,238.83,238.75,12.6105875]
[1732726287255,12.6105875,238.84,238.77,12.6105875]
[1732726287656,16.8554,238.87,238.79,12.6105875]
[1732726287875,16.8554,238.87,238.81,12.6105875]
[1732726288057,16.8554,238.87,238.79,12.6105875]
[1732726288058,12.6105875,238.86,238.79,12.6105875]
[1732726288468,29.4659875,238.87,238.8,12.6105875]
[1732726288785,29.4659875,238.87,238.79,12.6105875]
[1732726289076,15.5995,238.87,238.81,12.6105875]
[1732726289382,16.8554,238.87,238.81,12.6105875]
[1732726289597,12.6105875,238.86,238.78,12.6105875]
[1732726289885,12.6105875,238.85,238.78,12.6105875]
[1732726290087,1.2558,238.88,238.79,12.6105875]
[1732726290263,1.2558,238.88,238.76,6.6047]
[1732726290264,12.6105875,238.88,238.81,12.6105875]
[1732726290464,1.2558,238.89,238.82,12.6105875]
[1732726290783,12.6105875,238.88,238.8,12.6105875]
[1732726291386,12.6105875,238.83,238.77,12.6105875]
[1732726291887,12.6105875,238.86,238.78,12.6105875]
[1732726292266,12.6105875,238.85,238.77,12.6105875]
[1732726292479,12.6105875,238.85,238.75,4.1883]
[1732726292480,1.256,238.85,238.78,12.6105875]
[1732726292663,12.6105875,238.83,238.76,12.6105875]
[1732726292857,12.6105875,238.82,238.74,12.6105875]
[1732726293056,12.6105875,238.81,238.74,12.6105875]
[1732726293291,12.6105875,238.8,238.72,12.6105875]
[1732726293469,12.6105875,238.79,238.71,12.6105875]
[1732726293660,12.6105875,238.78,238.71,12.6105875]
[1732726293868,28.6990875,238.82,238.74,12.6105875]
[1732726294071,12.6105875,238.81,238.74,12.6105875]
[1732726294662,1.2562,238.8,238.73,12.6105875]
[1732726295380,12.6105875,238.74,238.64,12.6105875]
[1732726295568,15.9592,238.78,238.68,12.6105875]
[1732726295767,12.6105875,238.76,238.68,12.6105875]
[1732726295965,15.9592,238.78,238.69,0.83559904]
[1732726296208,15.9592,238.78,238.72,12.6105875]
[1732726296578,28.5697875,238.78,238.7,12.6105875]
[1732726296770,29.8261875,238.78,238.7,12.6105875]
[1732726297685,12.6105875,238.76,238.68,12.6105875]
[1732726298071,12.6105875,238.73,238.65,12.6105875]
[1732726298388,17.2156,238.78,238.67,12.6105875]
[1732726298389,12.6105875,238.75,238.67,12.6105875]
[1732726298787,15.9592,238.78,238.71,12.6105875]
[1732726299091,17.2155,238.78,238.71,12.6105875]
[1732726299463,12.6105875,238.81,238.73,12.6105875]
[1732726299668,1.2562,238.82,238.75,12.6105875]
[1732726300172,12.6105875,238.81,238.73,12.6105875]
[1732726300569,12.6105875,238.81,238.74,12.6105875]
[1732726301288,13.8667875,238.82,238.75,12.6105875]
[1732726301487,12.6105875,238.78,238.71,12.6105875]
[1732726301696,1.2562,238.82,238.71,12.6105875]
[1732726301697,12.6105875,238.81,238.74,12.6105875]
[1732726302272,22.37162837,238.83,238.77,12.6105875]
[1732726302583,28.9793875,238.83,238.76,12.6105875]
[1732726302776,1.2558,238.88,238.81,12.6105875]
[1732726302990,1.2558,238.88,238.8,12.6105875]
[1732726303194,12.6105875,238.85,238.78,12.6105875]
[1732726303717,12.6105875,238.84,238.76,12.6105875]
[1732726304073,12.6105875,238.83,238.76,12.6105875]
[1732726304401,12.6105875,238.84,238.77,12.6105875]
[1732726304569,12.6105875,238.86,238.78,12.6105875]
[1732726304772,12.6105875,238.85,238.77,12.6105875]
[1732726305168,12.6105875,238.85,238.78,12.6105875]
[1732726305601,12.6105875,238.86,238.79,12.6105875]
[1732726306095,13.8664875,238.87,238.79,12.6105875]
[1732726306303,12.6105875,238.86,238.78,12.6105875]
[1732726306482,12.6105875,238.86,238.79,12.6105875]
[1732726306799,12.6105875,238.86,238.78,12.6105875]
[1732726307178,12.6105875,238.86,238.79,12.6105875]
[1732726307604,12.6105875,238.86,238.78,12.6105875]
[1732726307907,12.6105875,238.87,238.8,12.6105875]
[1732726308205,12.6105875,238.87,238.79,12.6105875]
[1732726308781,12.6105875,238.86,238.79,12.6105875]
[1732726309089,1.256,238.85,238.79,12.6105875]
[1732726310095,13.8664875,238.88,238.81,12.6105875]
[1732726310297,12.6105875,238.86,238.79,12.6105875]
[1732726310504,12.6105875,238.87,238.79,12.6105875]
[1732726310974,13.8664875,238.88,238.8,12.6105875]
[1732726311180,1.2558,238.9,238.83,12.6105875]
[1732726311390,1.2558,238.9,238.84,12.6105875]
[1732726311985,12.6105875,238.93,238.85,12.6105875]
[1732726312187,1.2555,238.94,238.88,8.07582142]
[1732726313200,17.8365,238.96,238.88,8.07582142]
[1732726313381,8.07582142,238.95,238.88,8.07582142]
[1732726313588,25.91232142,238.96,238.88,8.07582142]
[1732726313890,8.07582142,238.95,238.88,8.07582142]
[1732726314092,8.07582142,238.94,238.87,8.07582142]
[1732726314304,1.2554,238.95,238.88,12.61670848]
[1732726314504,1.2554,238.95,238.89,12.61670848]
[1732726316507,1.2554,238.95,238.87,12.61670848]
[1732726316680,12.61670848,238.94,238.87,12.61670848]
[1732726316884,12.61670848,238.94,238.85,12.61670848]
[1732726317183,12.61670848,238.94,238.87,12.61670848]
[1732726317384,12.61670848,238.94,238.85,12.61670848]
[1732726317900,1.2555,238.93,238.85,12.61670848]
[1732726319591,12.61670848,238.9,238.83,12.61670848]
[1732726319798,1.2558,238.89,238.83,12.61670848]
[1732726320299,12.61670848,238.94,238.87,12.61670848]
[1732726320607,16.5811,238.96,238.88,12.61670848]
[1732726320608,12.61670848,238.95,238.88,12.61670848]
[1732726321311,1.2554,238.95,238.9,12.61670848]
[1732726321698,16.5811,238.96,238.94,12.61670848]
[1732726322010,1.2552,239.0,238.95,12.61670848]
[1732726322388,16.3352,239.02,238.95,12.61670848]
[1732726322616,15.0801,239.02,238.97,12.61670848]
[1732726322793,15.0801,239.02,238.98,12.61670848]